Cogmind - Beta 12 @@@ ROGUE MODE // 2023.04.09 @ 17:53:43 Player: Rohain Result: Destroyed by P-60 Hacker with Shock Rifle Performance ------------- Evolutions (2) 1000 Regions Visited (6) 1200 Robots Destroyed (57) 285 Value Destroyed (2113) 2113 Prototype IDs (23) 460 Alien Tech Used (0) 0 Bonus (741) 741 TOTAL SCORE: 5799 Bonus ------- High Alert Combat Kills 44 Follower Combat Kills 197 Entered Garrisons 200 Aligned with FarCom 300 Cogmind --------- Core Integrity 0/550 Matter 300/300 Energy 160/160 System Corruption 0% Temperature Cool (9) Movement Walking (100) Location -8/Garrison Parts ------- > --- POWER (1) -------- Light Nuclear Core > --- PROPULSION (3) --- Aluminum Leg Potential Leg Potential Leg > --- UTILITY (4) ------ Improved Heat Sink Improved Heat Sink Large Storage Unit Melee Analysis Suite > --- WEAPON (3) ------- Powered Hammer Powered Hammer > --- INVENTORY (15) --- Light Deuterium Engine Light Nuclear Core Light Nuclear Core Aluminum Leg Aluminum Leg Aluminum Leg Aluminum Leg Particle Gun AWS/Thermal Ion Cannon Minigun Peak State ------------ > --- POWER ------------ Light Nuclear Core > --- PROPULSION ------- Carbon-fiber Leg Potential Leg Potential Leg > --- UTILITY ---------- Advanced Heat Sink Large Storage Unit Melee Analysis Suite System Shield > --- WEAPON ----------- Powered Hammer Scythe Ripper > --- INVENTORY -------- Light Deuterium Engine Light Deuterium Engine Light Deuterium Engine Light Nuclear Core Aluminum Leg Aluminum Leg Aluminum Leg Aluminum Leg AWS/Thermal Ion Cannon Light Assault Rifle Minigun Powered Hammer [Rating: 53] Favorites ----------- Power Light Nuclear Core Engine Ion Engine Power Core Light Nuclear Core Propulsion Potential Leg Leg Potential Leg Utility Hacking Suite Device Advanced Heat Sink Storage Large Storage Unit Processor Melee Analysis Suite Hackware Hacking Suite Protection Improved Light Armor Plating Weapon Ripper Energy Gun Heavy Laser Energy Cannon Ion Cannon Ballistic Gun Assault Rifle Ballistic Cannon Light Cannon Impact Weapon Powered Hammer Slashing Weapon Ripper Build | -11 -10 -10 -10 -9 -8 -8 ------- Run | Jun Mat Min Exi Min Mat Gar Slots Evolved 4 | . . . . . 4 . Power . | . . . . . . . Propulsion 1 | . . . . . 1 . Utility 2 | . . . . . 2 . Weapon 1 | . . . . . 1 . Parts Attached 57 | 7 6 6 3 1 20 14 Power 13 | 1 1 1 . . 6 4 Engine 10 | 1 1 . . . 5 3 Core 3 | . . 1 . . 1 1 Reactor . | . . . . . . . Propulsion 17 | 2 2 4 2 . 3 4 Treads . | . . . . . . . Leg 17 | 2 2 4 2 . 3 4 Wheel . | . . . . . . . Hover . | . . . . . . . Flight . | . . . . . . . Utility 13 | 1 2 . 1 . 7 2 Device 5 | . . . . . 3 2 Storage 3 | 1 1 . 1 . . . Processor 1 | . . . . . 1 . Hackware 2 | . 1 . . . 1 . Protection 2 | . . . . . 2 . Artifact . | . . . . . . . Weapon 14 | 3 1 1 . 1 4 4 Energy Gun 1 | . . . . . 1 . Energy Cannon 1 | . . . . . 1 . Ballistic Gun 5 | 3 . 1 . . . 1 Ballistic Cannon 1 | . 1 . . . . . Launcher . | . . . . . . . Special Weapon . | . . . . . . . Impact Weapon 2 | . . . . . 1 1 Slashing Weapon 4 | . . . . 1 1 2 Piercing Weapon . | . . . . . . . Special Melee Weapon . | . . . . . . . Unidentified Prototypes . | . . . . . . . Parts Lost 19 | . 1 3 . 1 5 9 Power 5 | . . 1 . . 2 2 Propulsion 4 | . . 1 . . 1 2 Utility 3 | . . . . . 1 2 Weapon 7 | . 1 1 . 1 1 3 Highest Loss Streak 5 | . 1 3 . 1 2 5 To Critical Strikes . | . . . . . . . Average Slot Usage (%) 93 | . 98 99 100 90 90 85 Engine 5 | . 14 8 . . 4 4 Core 6 | . . 4 14 14 4 4 Leg 27 | . 28 28 28 28 26 26 Device 2 | . . . . . 6 6 Storage 11 | . 14 14 14 14 9 9 Processor 1 | . . . . . 2 9 Hackware 10 | . 12 14 14 14 8 . Protection 2 | . . . . . 9 . Energy Gun 1 | . . . . . 4 . Ballistic Gun 8 | . 21 14 14 3 . . Ballistic Cannon 5 | . 5 14 14 5 . . Impact Weapon 2 | . . . . . . 15 Slashing Weapon 6 | . . . . 10 13 10 Naked Turns . | . . . . . . . Heaviest Build 42 | 14 20 20 29 31 42 39 Greatest Support 80 | 20 20 30 60 60 80 75 Greatest Overweight (x) 4 | 4 . . . . . . Average Overweight (x) . | . . . . . . . Largest Inventory Capacity 15 | 8 10 10 15 15 15 15 Average Capacity 12 | 7 9 10 10 15 15 15 Most Carried 15 | 6 10 10 10 12 15 14 Average Carried 10 | 4 8 9 9 11 13 13 Final Capacity 15 | 8 10 10 15 15 15 15 Final Carried 14 | 6 10 9 10 12 14 12 Class Distribution -------------------- 66% | Mutant 33% | Scavenger-Mutant Dominant Class ---------------- Mutant | -10/Materials Scavenger-Mutant | -10/Mines Mutant | -10/Exiles Mutant | -9/Mines Mutant | -8/Materials Mutant | -8/Garrison Resources | -11 -10 -10 -10 -9 -8 -8 ----------- Run | Jun Mat Min Exi Min Mat Gar Matter Collected 1127 | 235 375 158 . 44 165 150 Remotely . | . . . . . . . Salvage Created 2269 | . 391 110 . 390 742 636 Parts 100 | . 24 2 . 15 36 23 Haulers Intercepted 1 | . . . . . 1 . Recyclers Shooed 2 | . 2 . . . . . Parts Field Recycled . | . . . . . . . Retrieved Matter . | . . . . . . . Parts Self-Destructed . | . . . . . . . Prevented . | . . . . . . . Kills | -11 -10 -10 -10 -9 -8 -8 ------- Run | Jun Mat Min Exi Min Mat Gar Combat Hostiles Destroyed 49 | . 11 2 . 8 12 16 Melee 34 | . . . . 8 11 15 Guns 9 | . 8 1 . . . . Cannons 4 | . 3 1 . . . . Classes Destroyed 12 | . 3 1 . 1 4 3 Worker 1 | . . . . . 1 . Tunneler 2 | . . . . 2 . . Hauler 1 | . . . . . 1 . Recycler 1 | . . 1 . . . . Operator 2 | . 2 . . . . . Watcher 1 | . . . . . 1 . Swarmer 8 | . 3 2 . . . 3 Cutter 1 | . . . . . . 1 Grunt 32 | . 8 . . 8 9 7 Duelist 1 | . . . . . . 1 Sentry 6 | . . . . . 3 3 Hunter 1 | . . . . . . 1 Best Kill Streak 6 | . 6 1 . 3 3 6 Combat Bots Only 6 | . 6 1 . 3 3 6 Max Kills in Single Turn 1 | . 1 1 . 1 1 1 Gunslinging . | . . . . . . . Exploded . | . . . . . . . Melee 1 | . . . . 1 1 1 Uniques/NPCs Destroyed . | . . . . . . . Combat | -11 -10 -10 -10 -9 -8 -8 -------- Run | Jun Mat Min Exi Min Mat Gar Damage Taken 3618 | . 429 458 . 355 1040 1336 Core 797 | . 42 77 . 123 221 334 Absorbed by Shields . | . . . . . . . Redirected to Shielding 42 | . . . . . 42 . Core Remaining (%) 51 | 100 . . . 3 . . Volleys Fired 70 | . 45 19 . 1 5 . Largest 2 | . 2 2 . 1 1 . Hottest 69 | . 55 55 . 35 69 . Shots Fired 134 | . 90 38 . 1 5 . Gun 96 | . 75 19 . . 2 . Cannon 38 | . 15 19 . 1 3 . Launcher . | . . . . . . . Special . | . . . . . . . Kinetic 129 | . 90 38 . 1 . . Thermal 5 | . . . . . 5 . Explosive . | . . . . . . . Electromagnetic . | . . . . . . . Robot Hit Streak 11 | . 11 6 . . 1 . Robot Miss Streak 5 | . 5 4 . 1 2 . Penetration Max . | . . . . . . . Secondary Targets . | . . . . . . . Shots Hit Robots 170 | . 52 23 . 14 39 42 Core Hits 64 | . 19 8 . 10 14 13 Critical Kills . | . . . . . . . Critical Parts Destroyed 4 | . . 1 . . 1 2 Critical Strikes 13 | . . 2 . 2 5 4 Destroy 1 | . . 1 . . . . Blast 1 | . . 1 . . . . Smash 4 | . . . . . 1 3 Sever 7 | . . . . 2 4 1 Melee Attacks 157 | . . . . 31 48 78 Impact 63 | . . . . . 2 61 Slashing 94 | . . . . 31 46 17 Piercing . | . . . . . . . Sneak Attacks 7 | . . . . 2 5 . Combat Hostiles . | . . . . . . . Follow-up Attacks 15 | . . . . . 2 13 Damage Inflicted 5011 | . 743 324 . 592 1628 1724 Guns 725 | . 574 132 . . 19 . Cannons 407 | . 169 192 . . 46 . Explosions . | . . . . . . . Melee 3879 | . . . . 592 1563 1724 Ramming . | . . . . . . . Kinetic 1067 | . 743 324 . . . . Thermal 65 | . . . . . 65 . Explosive . | . . . . . . . Electromagnetic . | . . . . . . . Impact 1467 | . . . . . 80 1387 Slashing 2412 | . . . . 592 1483 337 Piercing . | . . . . . . . Highest Corruption . | . . . . . . . Average Corruption . | . . . . . . . Corruption Purged . | . . . . . . . Corruption Blocked . | . . . . . . . Overload Shots . | . . . . . . . Overflow Damage 417 | . . . . . 184 233 Projectiles . | . . . . . . . Explosions . | . . . . . . . Melee 417 | . . . . . 184 233 Knockbacks 9 | . 1 4 . . 1 3 Impact 4 | . . . . . 1 3 Kinetic 4 | . 1 3 . . . . Secondary 1 | . . 1 . . . . Self-Inflicted Damage . | . . . . . . . Shots . | . . . . . . . Rammed . | . . . . . . . Targets Rammed . | . . . . . . . Kicked . | . . . . . . . Crushed . | . . . . . . . Highest Temperature 110 | . 10 110 . . 42 . Average Temperature 24 | . 3 41 . . 16 . Received Heat Transfer 1449 | . 198 183 . 195 540 333 Siege Activations . | . . . . . . . Robots Corrupted . | . . . . . . . Combat Hostiles . | . . . . . . . Parts Fried 7 | . . . . . 1 6 Impact Corruptions 10 | . . . . . 3 7 Robots Melted . | . . . . . . . Combat Hostiles . | . . . . . . . Parts Melted . | . . . . . . . Heat Transferred 111 | . . . . . 111 . Parts Sabotaged . | . . . . . . . Parts Stolen . | . . . . . . . Parts Stripped . | . . . . . . . Power Chain Reactions . | . . . . . . . Missiles Intercepted . | . . . . . . . Alert | -11 -10 -10 -10 -9 -8 -8 ------- Run | Jun Mat Min Exi Min Mat Gar Peak Influence 545 | . 237 345 . 126 251 545 Initial 42 | . . 42 . . 27 29 Average 135 | . 124 153 . 40 130 283 Maximum Alert Level 2 | . 1 1 . . 1 2 Low Security (%) 76 | 100 89 72 . 100 73 35 Level 1 18 | . 10 27 . . 26 27 Level 2 5 | . . . . . . 37 Level 3 . | . . . . . . . Level 4 . | . . . . . . . Level 5 . | . . . . . . . High Security . | . . . . . . . Max Security . | . . . . . . . Squads Dispatched 3 | . 2 . . . 1 . Investigation . | . . . . . . . Extermination . | . . . . . . . Reinforcement 3 | . 2 . . . 1 . Assault . | . . . . . . . Garrison . | . . . . . . . Intercept . | . . . . . . . Searches Triggered . | . . . . . . . Construction Impeded . | . . . . . . . Haulers Reinforced . | . . . . . . . Active Scanning Responses . | . . . . . . . Cargo Convoy Interrupts . | . . . . . . . Stealth | -11 -10 -10 -10 -9 -8 -8 --------- Run | Jun Mat Min Exi Min Mat Gar Distress Signals 9 | . 1 . . 2 6 . Communications Jammed . | . . . . . . . Distress Signals . | . . . . . . . Times Spotted 95 | . 20 12 . 8 33 22 Peak Tracking Total 8 | . 5 7 . 3 8 8 Tactical Retreats 13 | . . . . . 8 5 Traps | -11 -10 -10 -10 -9 -8 -8 ------- Run | Jun Mat Min Exi Min Mat Gar Traps Triggered 1 | . . . . . 1 . Indirectly . | . . . . . . . Trap Hack Attempts . | . . . . . . . Triggered . | . . . . . . . Disarmed . | . . . . . . . Reprogrammed . | . . . . . . . Reused . | . . . . . . . Traps Extracted . | . . . . . . . Installed . | . . . . . . . Triggered 2 | . . . . . . 2 Machines | -11 -10 -10 -10 -9 -8 -8 ---------- Run | Jun Mat Min Exi Min Mat Gar Machines Disabled 2 | . . . . 1 . 1 Max in Single Turn 1 | . . . . 1 . 1 Garrison Relay 1 | . . . . . . 1 Machines Repaired . | . . . . . . . Machines Sabotaged . | . . . . . . . Overloaded Fab Kills . | . . . . . . . Hacking | -11 -10 -10 -10 -9 -8 -8 --------- Run | Jun Mat Min Exi Min Mat Gar Machines Accessed 12 | . 3 . 2 . 6 1 Terminals 9 | . 3 . . . 5 1 Fabricators . | . . . . . . . Repair Stations . | . . . . . . . Recycling Units . | . . . . . . . Scanalyzers . | . . . . . . . Garrison Access 1 | . . . . . 1 . Total Hacks 30 | . 6 . 7 . 16 1 Successful 19 | . 4 . 7 . 8 . Failed 9 | . 1 . . . 7 1 Catastrophic 2 | . 1 . . . 1 . Database Lockouts 2 | . 1 . . . 1 . Manual 25 | . 7 . 1 . 16 1 Terminals 22 | . 6 . . . 15 1 Fabricators . | . . . . . . . Repair Stations . | . . . . . . . Recycling Units . | . . . . . . . Scanalyzers . | . . . . . . . Garrison Access 1 | . . . . . 1 . Terminal Hacks 12 | . 1 . 7 . 4 . Record 6 | . . . 6 . . . Robot Analysis 2 | . 1 . . . 1 . Unreport Threat 2 | . . . . . 2 . Registered Components 1 | . . . . . 1 . EX-Prototype ID Bank 1 | . . . 1 . . . Fabricator Hacks . | . . . . . . . Repair Station Hacks . | . . . . . . . Recycling Unit Hacks . | . . . . . . . Scanalyzer . | . . . . . . . Garrison Access Hacks 1 | . . . . . 1 . Unlock Access 1 | . . . . . 1 . Unauthorized Hacks 6 | . 3 . . . 3 . Terminals 6 | . 3 . . . 3 . Botnet 6 | . 3 . . . 3 . Fabricators . | . . . . . . . Repair Stations . | . . . . . . . Recycling Units . | . . . . . . . Scanalyzers . | . . . . . . . Garrison Access . | . . . . . . . Data Cores Recovered . | . . . . . . . Used . | . . . . . . . Hacking Detections 7 | . 2 . . . 5 . Full Trace Events . | . . . . . . . Feedback Events . | . . . . . . . Feedback Blocked . | . . . . . . . Robot Schematics Acquired . | . . . . . . . Robots Built . | . . . . . . . Authchips . | . . . . . . . Time . | . . . . . . . Total Robot Build Rating . | . . . . . . . Part Schematics Acquired . | . . . . . . . Parts Built . | . . . . . . . Authchips . | . . . . . . . Time . | . . . . . . . Total Part Build Rating . | . . . . . . . Parts Repaired . | . . . . . . . Time . | . . . . . . . Parts Recycled . | . . . . . . . Recycled Matter . | . . . . . . . Retrieved Matter . | . . . . . . . Retrieved Components . | . . . . . . . Parts Scanalyzed . | . . . . . . . Part Schematics Acquired . | . . . . . . . Parts Damaged . | . . . . . . . Bothacking | -11 -10 -10 -10 -9 -8 -8 ------------ Run | Jun Mat Min Exi Min Mat Gar Used RIF Installer . | . . . . . . . Robots Hacked . | . . . . . . . Non-combat . | . . . . . . . Combat . | . . . . . . . Robot Hacks Applied . | . . . . . . . Relay Couplers Released 4 | . . . . . . 4 Machine Destruction 4 | . . . . . . 4 Fabnet Peak Effective % . | . . . . . . . Robots Rewired . | . . . . . . . Allies Hacked . | . . . . . . . Hacks Repelled . | . . . . . . . Allies | -11 -10 -10 -10 -9 -8 -8 -------- Run | Jun Mat Min Exi Min Mat Gar Total Allies 4 | . . 3 . 1 . . Largest Group 3 | . . 3 1 1 1 . Highest-Rated Group 81 | . . 81 31 31 31 . Highest-Rated Ally 31 | . . 31 31 31 31 . Total Orders . | . . . . . . . Ally Attacks 34 | . . 29 . . 5 . Total Damage 566 | . . 482 . . 84 . Kills 11 | . . 10 . . 1 . Allies Corrupted . | . . . . . . . Allies Melted . | . . . . . . . Intel | -11 -10 -10 -10 -9 -8 -8 ------- Run | Jun Mat Min Exi Min Mat Gar Robot Analysis Total 2 | . 1 . . . 1 . Derelict Logs Recovered 1 | . . 1 . . . . Drone Launches . | . . . . . . . Drone Recoveries . | . . . . . . . Exploration | -11 -10 -10 -10 -9 -8 -8 ------------- Run | Jun Mat Min Exi Min Mat Gar Turns Passed 3385 | 110 550 489 391 538 845 462 Spaces Moved 2429 | 66 332 347 366 437 602 279 Core 22 | 22 . . . . . . Treads . | . . . . . . . Legs 2407 | 44 332 347 366 437 602 279 Wheels . | . . . . . . . Hover . | . . . . . . . Flight . | . . . . . . . Fastest Speed 50 | 50 120 120 90 90 90 90 Average Speed 106 | 141 120 122 105 90 102 99 Slowest Speed 250 | 250 120 130 130 90 106 100 Overloaded Moves . | . . . . . . . Propulsion Burnouts . | . . . . . . . Robots Hopped . | . . . . . . . Cave-ins Triggered . | . . . . . . . Exploration Rate (%) 52 | 4 57 81 63 79 50 36 Regions Visited 6 Branch Regions 3 Pre-discovered Areas 1 | . . 1 . . . . Known Exits Taken 1 | . . . . . 1 . Unknown Exits Taken 5 | 1 1 1 1 1 . . Scrap Searched 3 | . . 1 . 2 . . Spaces Dug 9 | . . . . 1 2 6 Terrain Destroyed 10 | . . . . 1 3 6 Melee 9 | . . . . 1 2 6 Projectile 1 | . . . . . 1 . AOE . | . . . . . . . Terrain Rammed . | . . . . . . . Walls Destroyed . | . . . . . . . Machines Disabled . | . . . . . . . Actions | -11 -10 -10 -10 -9 -8 -8 --------- Run | Jun Mat Min Exi Min Mat Gar Total 2868 | 80 393 373 373 533 756 360 Wait 137 | . 5 . . 62 61 9 Move 2424 | 65 331 346 365 436 602 279 Hop . | . . . . . . . Pick Up 32 | 8 4 . 1 2 14 3 Fast Attach 19 | 4 . 1 . . 6 8 Attach 20 | 2 2 2 . . 9 5 Detach 1 | . . . . . . 1 Swap 18 | 1 4 3 3 1 5 1 Drop 19 | . 2 2 4 . 10 1 Fire 70 | . 45 19 . 1 5 . Melee 128 | . . . . 31 44 53 Ram . | . . . . . . . Kick . | . . . . . . . Crush . | . . . . . . . Escape Stasis . | . . . . . . . Rewire . | . . . . . . . Trap . | . . . . . . . Miscellaneous . | . . . . . . . Route ------- -11/Junkyard -10/Materials (discovered 3 exits: [*Mat] / [*Min x2]) -10/Mines (discovered 3 exits: [*Mat x2] / *Exi) -10/Exiles -9/Mines -8/Materials (discovered 2 exits: [*Fac] / Gar) -8/Garrison (discovered 1 exit: [*Mat]) History --------- Turn | Location | Event 28 | -11/Junkyard | Discovered new exit (range 15) 111 | -11/Junkyard | Entered Materials 304 | -10/Materials | Build established: Mutant 337 | -10/Materials | Discovered new exit (range 10) 390 | -10/Materials | Discovered new exit (range 16) 391 | -10/Materials | Central database locked down 506 | -10/Materials | Discovered new exit (range 10) 661 | -10/Materials | Entered Mines 736 | -10/Mines | Learned location of Storage (-9) 748 | -10/Mines | Received a Mining Laser from a helpful Derelict 786 | -10/Mines | Build established: Scavenger-Mutant 819 | -10/Mines | Discovered new exit (range 6) 982 | -10/Mines | Found a hidden stash of uninstalled traps 1008 | -10/Mines | Lost 3 parts (1p1n1w) 1058 | -10/Mines | Discovered new exit (range 10) 1144 | -10/Mines | Deemed a non-threat by the Exiles lab entrance 1144 | -10/Mines | Discovered new exit (range 5) 1150 | -10/Mines | Entered Exiles 1150 | -10/Exiles | Accompanied by 1 ally 1180 | -10/Exiles | Led the pair of lost Derelicts to a safe place 1186 | -10/Exiles | Met 8R-AWN 1204 | -10/Exiles | Met EX-HEX 1244 | -10/Exiles | Met EX-BIN 1258 | -10/Exiles | Aligned with FarCom system 1260 | -10/Exiles | Given EX-Vault access code 1322 | -10/Exiles | Opened EX-Vault 1331 | -10/Exiles | Found Potential Leg 1334 | -10/Exiles | Found Potential Leg 1353 | -10/Exiles | Warned to stay clear of 0b10 Research branches 1413 | -10/Exiles | Found AWS/Thermal 1473 | -10/Exiles | Met EX-DEC 1531 | -10/Exiles | Discovered new exit (range 10) 1541 | -10/Exiles | Stole two prototypes: Potential Leg, AWS/Thermal 1541 | -10/Exiles | Entered Mines 1632 | -9/Mines | Build established: Mutant 1651 | -9/Mines | A weapon hastily lodged in a ceiling crevice suddenly fell to the ground 1698 | -9/Mines | Excavation squad dispatched 1698 | -9/Mines | A large section of the Mines collapsed 1727 | -9/Mines | Core integrity fell below 50% 1948 | -9/Mines | Excavation squad dispatched 2046 | -9/Mines | Core integrity fell below 20% 2071 | -9/Mines | Escorted by a lone wolf Derelict 2071 | -9/Mines | Discovered new exit (range 8) 2079 | -9/Mines | Entered Materials 2079 | -8/Materials | Accompanied by 1 ally 2079 | -8/Materials | Evolved 4 slots: Propulsion x1, Utility x2, Weapon x1 2123 | -8/Materials | Central database locked down 2813 | -8/Materials | Discovered new exit (range 14) 2924 | -8/Materials | Identified exit to Garrison 2924 | -8/Materials | Entered Garrison 2968 | -8/Garrison | Triggered checkpoint 3033 | -8/Garrison | Core integrity fell below 50% 3075 | -8/Garrison | Lost 5 parts (1p1n2u1w) 3134 | -8/Garrison | Triggered checkpoint 3215 | -8/Garrison | Garrison Relay disabled 3298 | -8/Garrison | Triggered checkpoint 3304 | -8/Garrison | Core integrity fell below 20% 3359 | -8/Garrison | Discovered new exit (range 9) 3386 | -8/Garrison | Destroyed by P-60 Hacker with Shock Rifle Last Messages --------------- 03249_ Stasis field depleted. 03261_ Acquired Blade Saw. 03298_ Beams of light sweep through the air. An alarm sounds. 03303_ Ripper follow-up attack on G-47 Trooper. 03303_ G-47 Trooper destroyed. 03310_ Aluminum Leg destroyed. 03313_ Powered Hammer follow-up attack on G-47 Trooper. 03316_ Ripper destroyed. 03316_ G-47 Trooper destroyed. 03320_ Acquired Aluminum Leg. 03322_ Acquired 10 matter. 03327_ Dropped Lgt. Assault Rifle. 03329_ Acquired Imp. Heat Sink. 03330_ Acquired 10 matter. 03333_ Acquired Imp. Heat Sink. 03335_ Acquired 10 matter. 03359_ EXIT=FOUND 03378_ Y-45 Defender suffers critical hit (Smash). 03384_ Y-45 Defender destroyed. 03386_ Blade Saw destroyed. Map ----- +----------------------------------------------------+ | ?????????????????????????????????" | | ?????????????????????????????????" | | ?????????????????????????????????" | | ?????????????????????????????????# ## ## #? | | ???????????????????????########### ## ## ## | | ???????????????????????# =% | | ???????????????????????# [%* | | ???????????????????????# ######## *%[ ## | | ???????????????????????# #??????###### ## ##? | | ???????????????????????# #???????????# #" #?? | | ???????????????????????# #???????????####### #?? | | ??????????????########## #????????????????## ### | | ??????????????# #????????????????#" " | | ??????????????# #????????????????## ### | | ??????????????# < ##### ###?????????????????# #?? | | ??????????????????????# #???????????????????# ### | | ??????????????????????# #???????????????????# | | ??????????????????????# #???????????????????# | | ??????????????????????# #???????????????????###### | | ??????????????????????# #????????????????????????? | | ??????????????????????# #????????????????????????? | | ??????????????????????# #????????????????????????? | | ??????????????????????# #????????????????????????? | | ??????????????????????# #????????????????????????? | | ??????????????????##### #### #???????????????????? | | ??????????????????? + p@ g #???????????????????? | | ??????????????????????# ;%## #???????????????????? | | ??????????????????????# ###?g????????????????????? | | ??????????????????????# ????????????????????????? | | ??????????????????????###????????????????????????? | | ?????????????????????????????????????????????????? | | ?????????????????????????????????????????????????? | | ????????????????????????????????????????????????## | | ????????????????????????????????????????????????#" | | ????????????????????????????????????????????????## | | ?????????????????????????????????????????????????# | | ?????????????????????????????????????????????????# | | ?????????????????????????????????????????????????? | | ?????????????????????????????????????????????????? | | ?????????????????????????????????????????????????? | | ?????????????????????????????????????????????????? | | ?????????????????????????????????????????????????? | | ?????????????????????????????????????????????????? | | ?????????????????????????????????????????????????? | | ?????????????????????????????????????????????????? | | ?????????????????????????????????????????????????? | | ?????????????????????????????????????????????????? | | ?????????????????????????????????????????????????? | | ?????????????????????????????????????????????????? | | ?????????????????????????????????????????????????? | +----------------------------------------------------+ Best States ------------- Heat Dissipation 59 Energy Generation 18 Energy Capacity 250 Matter Stores 300 Matter Capacity 300 Sight Range 16 Terrain Scan Density 10 Armor Coverage 150 Propulsion Shielding 33 Evasion (%) 57 Melee Accuracy 5 Offensive Hacking 10 Defensive Hacking 10 Item Schematics ----------------- None Robot Schematics ------------------ None Fabricated ------------ Nothing Alien Tech Used ----------------- None Achievements -------------- None Challenges ------------ None Game ------ Seed CloakingNeutrinoSplitter Manual? 0 Play Time 00:28:24 Cumulative 40.1 hours Start 2023.04.09 @ 17:29:13 End 2023.04.09 @ 17:53:43 Sessions 1 Manual Loads 0 Difficulty Rogue Special Mode None Game No. 64 Rogue 48 Adventurer 16 Explorer 0 Win Type - Total 1 Types 1/0/0/0/0/0/0/0/0 Lore% 29 Gallery% 46 Achievement% 42 Wizard Run 0 Options --------- ASCII 0 Keyboard 0 Movement Mouse Keybinds 0 Fullscreen 1 Font 18/SmallcapsGlow Map View 76x50 Tactical HUD 1 Map Filters NONE Filters NONE Steam 1 RUN: 0b210df4-d0ca-427f-a004-a68703c19e62